fUST/lending_fUST_20250811
["ID","MTS","AMOUNT","RATE_DAILY","PERIOD"]
[378574443,1754915444762,-460.0,0.00019367,2]
[378574445,1754915444772,-460.0,0.00019367,2]
[378574447,1754915444782,-460.0,0.00019367,2]
[378574449,1754915444791,-460.0,0.00019367,2]
[378574451,1754915444801,-500.0,0.00019368,2]
[378574453,1754915444810,-500.0,0.00019368,2]
[378574455,1754915444820,-150.0,0.00019368,2]
[378574457,1754915444831,-500.0,0.00019372,2]
[378574459,1754915444845,-5000.0,0.00019377,2]
[378574461,1754915444855,-2264.10087164,0.00019388,2]
[378574463,1754915444865,-151.0,0.000194,2]
[378574465,1754915444875,-151.0,0.000194,2]
[378574467,1754915444886,-151.0,0.000194,2]
[378574469,1754915444896,-151.0,0.000194,2]
[378574471,1754915444906,-53236.7545711,0.00019404,2]
[378574473,1754915444920,-255.0,0.0001941,2]
[378574475,1754915444930,-366.92793771,0.00019415,2]
[378574477,1754915444940,-2347.87260389,0.00019443,2]
[378574479,1754915444951,-500.0,0.00019455,2]
[378574482,1754915444960,-500.0,0.00019455,2]
[378574484,1754915444970,-500.0,0.00019455,2]
[378574486,1754915444980,-500.0,0.00019464,2]
[378574488,1754915444991,-500.0,0.00019464,2]
[378574490,1754915445002,-500.0,0.00019464,2]
[378574492,1754915445012,-460.0,0.00019465,2]
[378574494,1754915445021,-460.0,0.00019465,2]
[378574496,1754915445032,-460.0,0.00019465,2]
[378574498,1754915445041,-518.80813183,0.00019465,2]
[378574500,1754915445051,-460.0,0.00019465,2]
[378574502,1754915445060,-193.22760636,0.00019465,2]
[378574504,1754915445070,-460.0,0.00019465,2]
[378574506,1754915445080,-460.0,0.00019465,2]
[378574508,1754915445091,-783.23,0.00019465,2]
[378574510,1754915445101,-965.6,0.00019465,2]
[378574512,1754915445111,-460.0,0.00019465,2]
[378574514,1754915445120,-460.0,0.00019465,2]
[378574516,1754915445129,-461.69432479,0.00019465,2]
[378574518,1754915445139,-460.0,0.00019465,2]
[378574520,1754915445148,-460.0,0.00019465,2]
[378574522,1754915445158,-460.0,0.00019465,2]
[378574524,1754915445168,-460.0,0.00019465,2]
[378574526,1754915445177,-460.0,0.00019465,2]
[378574528,1754915445186,-460.0,0.00019465,2]
[378574530,1754915445196,-460.0,0.00019465,2]
[378574532,1754915445206,-460.0,0.00019465,2]
[378574534,1754915445215,-460.91294686,0.00019465,2]
[378574536,1754915445225,-460.0,0.00019465,2]
[378574539,1754915445236,-460.0,0.00019465,2]
[378574541,1754915445246,-460.0,0.00019465,2]
[378574543,1754915445256,-460.0,0.00019465,2]
[378574545,1754915445267,-460.0,0.00019465,2]
[378574547,1754915445277,-461.78873396,0.00019465,2]
[378574549,1754915445287,-460.0,0.00019465,2]
[378574551,1754915445297,-460.0,0.00019465,2]
[378574553,1754915445307,-460.0,0.00019465,2]
[378574555,1754915445317,-460.0,0.00019465,2]
[378574557,1754915445327,-460.0,0.00019465,2]
[378574559,1754915445338,-460.0,0.00019465,2]
[378574561,1754915445350,-409.0592012,0.00019465,2]
[378574563,1754915445360,-500.0,0.00019465,2]
[378574565,1754915445369,-460.0,0.00019465,2]
[378574568,1754915445379,-460.0,0.00019465,2]
[378574570,1754915445389,-460.0,0.00019465,2]
[378574572,1754915445398,-460.0,0.00019465,2]
[378574574,1754915445408,-460.0,0.00019465,2]
[378574576,1754915445417,-460.0,0.00019465,2]
[378574577,1754915445428,-460.0,0.00019465,2]
[378574578,1754915445437,-1000.0,0.00019465,2]
[378574579,1754915445447,-468.94039191,0.00019465,2]
[378574580,1754915445457,-460.0,0.00019465,2]
[378574581,1754915445467,-460.0,0.00019465,2]
[378574582,1754915445477,-460.0,0.00019465,2]
[378574583,1754915445486,-460.0,0.00019465,2]
[378574584,1754915445496,-441.61162198,0.00019465,2]
[378574585,1754915445506,-460.0,0.00019465,2]
[378574586,1754915445516,-460.0,0.00019465,2]
[378574588,1754915445526,-460.0,0.00019465,2]
[378574589,1754915445541,-461.72878687,0.00019465,2]
[378574590,1754915445551,-460.0,0.00019465,2]
[378574591,1754915445562,-460.0,0.00019465,2]
[378574592,1754915445573,-460.0,0.00019465,2]
[378574593,1754915445584,-460.0,0.00019465,2]
[378574594,1754915445598,-504.22,0.00019465,2]
[378574595,1754915445608,-460.0,0.00019465,2]
[378574596,1754915445619,-271.41383621,0.00019465,2]
[378574597,1754915445630,-1343.64,0.00019465,2]
[378574598,1754915445642,-460.0,0.00019465,2]
[378574599,1754915445652,-578.05,0.00019465,2]
[378574600,1754915445662,-460.0,0.00019465,2]
[378574602,1754915445672,-460.0,0.00019465,2]
[378574605,1754915445683,-460.0,0.00019465,2]
[378574607,1754915445693,-460.0,0.00019465,2]
[378574609,1754915445703,-460.0,0.00019465,2]
[378574610,1754915445713,-460.0,0.00019465,2]
[378574611,1754915445724,-460.0,0.00019465,2]
[378574612,1754915445735,-731.21,0.00019465,2]
[378574613,1754915445745,-460.0,0.00019465,2]
[378574615,1754915445754,-460.0,0.00019465,2]
[378574617,1754915445765,-676.34,0.00019465,2]
[378574619,1754915445775,-460.0,0.00019465,2]
[378574621,1754915445785,-460.0,0.00019465,2]
[378574623,1754915445795,-460.0,0.00019465,2]
[378574625,1754915445805,-522.32,0.00019465,2]
[378574627,1754915445815,-460.0,0.00019465,2]
[378574630,1754915445825,-460.0,0.00019465,2]
[378574632,1754915445835,-460.0,0.00019465,2]
[378574634,1754915445850,-460.0,0.00019465,2]
[378574636,1754915445860,-460.0,0.00019465,2]
[378574638,1754915445870,-460.0,0.00019465,2]
[378574640,1754915445879,-460.0,0.00019465,2]
[378574642,1754915445890,-460.0,0.00019465,2]
[378574644,1754915445899,-1388.82,0.00019465,2]
[378574646,1754915445916,-460.0,0.00019465,2]
[378574648,1754915445927,-460.0,0.00019465,2]
[378574650,1754915445936,-460.0,0.00019465,2]
[378574652,1754915445946,-460.0,0.00019465,2]
[378574654,1754915445958,-460.0,0.00019465,2]
[378574656,1754915445968,-856.47,0.00019465,2]
[378574659,1754915445978,-460.0,0.00019465,2]
[378574661,1754915445990,-1001.49,0.00019465,2]
[378574663,1754915446000,-460.0,0.00019465,2]
[378574665,1754915446011,-460.0,0.00019465,2]
[378574667,1754915446020,-460.0,0.00019465,2]
[378574669,1754915446030,-460.0,0.00019465,2]
[378574671,1754915446040,-460.0,0.00019465,2]
[378574673,1754915446050,-478.85364446,0.00019465,2]
[378574675,1754915446060,-829.52,0.00019465,2]
[378574677,1754915446070,-460.0,0.00019465,2]
[378574679,1754915446080,-1619.3,0.00019465,2]
[378574681,1754915446091,-449.56105437,0.00019465,2]
[378574683,1754915446101,-493.71,0.00019465,2]
[378574685,1754915446111,-460.0,0.00019465,2]
[378574688,1754915446121,-460.0,0.00019465,2]
[378574690,1754915446131,-460.0,0.00019465,2]
[378574692,1754915446140,-460.0,0.00019465,2]
[378574694,1754915446150,-1212.26,0.00019465,2]
[378574696,1754915446159,-460.0,0.00019465,2]
[378574698,1754915446169,-410.92830796,0.00019465,2]
[378574700,1754915446178,-460.0,0.00019465,2]
[378574702,1754915446188,-460.0,0.00019465,2]
[378574704,1754915446197,-505.88,0.00019465,2]
[378574706,1754915446206,-461.08057795,0.00019465,2]
[378574708,1754915446216,-580.00000001,0.00019465,2]
[378574733,1754915446438,-487.13,0.00019465,2]
[378574736,1754915446459,-460.0,0.00019465,2]
[378574738,1754915446469,-460.0,0.00019465,2]
[378574740,1754915446479,-460.0,0.00019465,2]
[378574742,1754915446488,-460.0,0.00019465,2]
[378574744,1754915446497,-460.0,0.00019465,2]
[378574746,1754915446507,-460.0,0.00019465,2]
[378574748,1754915446516,-460.0,0.00019465,2]
[378574750,1754915446525,-656.66,0.00019465,2]
[378574752,1754915446537,-460.0,0.00019465,2]
[378574754,1754915446546,-460.0,0.00019465,2]
[378574756,1754915446557,-460.0,0.00019465,2]
[378574758,1754915446566,-460.0,0.00019465,2]
[378574760,1754915446576,-460.0,0.00019465,2]
[378574762,1754915446585,-516.16,0.00019465,2]
[378574764,1754915446595,-460.0,0.00019465,2]
[378574766,1754915446605,-460.0,0.00019465,2]
[378574768,1754915446614,-460.0,0.00019465,2]
[378574770,1754915446624,-463.65279947,0.00019465,2]
[378574772,1754915446634,-460.0,0.00019465,2]
[378574774,1754915446643,-462.49972025,0.00019465,2]
[378574776,1754915446654,-460.0,0.00019465,2]
[378574778,1754915446663,-460.0,0.00019465,2]
[378574780,1754915446672,-460.0,0.00019465,2]
[378574782,1754915446682,-685.16,0.00019465,2]
[378574784,1754915446692,-460.0,0.00019465,2]
[378574786,1754915446703,-460.0,0.00019465,2]
[378574788,1754915446713,-790.7,0.00019465,2]
[378574790,1754915446723,-460.0,0.00019465,2]
[378574792,1754915446739,-460.0,0.00019465,2]
[378574794,1754915446749,-460.0,0.00019465,2]
[378574796,1754915446759,-460.0,0.00019465,2]
[378574798,1754915446768,-540.85126857,0.00019465,2]
[378574800,1754915446778,-855.15,0.00019465,2]
[378574802,1754915446787,-460.0,0.00019465,2]
[378574804,1754915446797,-603.45,0.00019465,2]
[378574806,1754915446806,-1640.73,0.00019465,2]
[378574808,1754915446815,-738.19,0.00019465,2]
[378574810,1754915446825,-460.0,0.00019465,2]
[378574812,1754915446834,-460.0,0.00019465,2]
[378574815,1754915446845,-460.0,0.00019465,2]
[378574817,1754915446854,-460.0,0.00019465,2]
[378574819,1754915446863,-1773.37,0.00019465,2]
[378574821,1754915446872,-460.0,0.00019465,2]
[378574823,1754915446882,-460.0,0.00019465,2]
[378574825,1754915446891,-1415.03,0.00019465,2]
[378574827,1754915446901,-460.0,0.00019465,2]
[378574829,1754915446912,-460.0,0.00019465,2]
[378574830,1754915446923,-800.87,0.00019465,2]
[378574832,1754915446932,-460.0,0.00019465,2]
[378574835,1754915446946,-460.0,0.00019465,2]
[378574837,1754915446955,-987.91,0.00019465,2]
[378574839,1754915446964,-460.0,0.00019465,2]
[378574841,1754915446974,-460.0,0.00019465,2]
[378574843,1754915446984,-460.74987161,0.00019465,2]
[378574845,1754915446995,-460.0,0.00019465,2]
[378574847,1754915447004,-460.0,0.00019465,2]
[378574848,1754915447013,-460.0,0.00019465,2]
[378574851,1754915447023,-460.0,0.00019465,2]
[378574853,1754915447033,-460.0,0.00019465,2]
[378574855,1754915447042,-1898.2,0.00019465,2]
[378574857,1754915447052,-460.0,0.00019465,2]
[378574859,1754915447062,-822.08,0.00019465,2]
[378574861,1754915447072,-460.0,0.00019465,2]
[378574863,1754915447081,-460.0,0.00019465,2]
[378574865,1754915447091,-460.0,0.00019465,2]
[378574867,1754915447101,-460.0,0.00019465,2]
[378574869,1754915447110,-476.92,0.00019465,2]
[378574871,1754915447120,-460.0,0.00019465,2]
[378574873,1754915447130,-460.0,0.00019465,2]
[378574874,1754915447140,-1167.71,0.00019465,2]
[378574876,1754915447150,-460.0,0.00019465,2]
[378574879,1754915447160,-460.0,0.00019465,2]
[378574881,1754915447170,-460.0,0.00019465,2]
[378574882,1754915447179,-460.0,0.00019465,2]
[378574884,1754915447189,-460.0,0.00019465,2]
[378574886,1754915447199,-460.0,0.00019465,2]
[378574888,1754915447209,-543.4,0.00019465,2]
[378574891,1754915447219,-487.85605393,0.00019465,2]
[378574893,1754915447228,-460.0,0.00019465,2]
[378574895,1754915447237,-1006.13622642,0.00019465,2]
[378574897,1754915447247,-460.0,0.00019465,2]
[378574899,1754915447256,-460.0,0.00019465,2]
[378574901,1754915447266,-656.88,0.00019465,2]
[378574903,1754915447275,-578.06,0.00019465,2]
[378574904,1754915447286,-775.82,0.00019465,2]
[378574907,1754915447296,-738.81,0.00019465,2]
[378574909,1754915447305,-860.33,0.00019465,2]
[378574910,1754915447314,-500.0,0.00019465,2]
[378574913,1754915447324,-500.0,0.00019465,2]
[378574915,1754915447333,-500.0,0.00019465,2]
[378574917,1754915447344,-905.18,0.00019465,2]
[378574919,1754915447354,-1056.3,0.00019465,2]
[378574920,1754915447364,-460.0,0.00019465,2]
[378574922,1754915447373,-460.0,0.00019465,2]
[378574924,1754915447383,-460.0,0.00019465,2]
[378574926,1754915447392,-12761.09,0.00019465,2]
[378574928,1754915447401,-151.0,0.00019465,2]
[378574931,1754915447412,-460.0,0.00019465,2]
[378574933,1754915447421,-704.43,0.00019465,2]
[378574935,1754915447430,-547.04930774,0.00019466,2]
[378574937,1754915447440,-460.0,0.00019466,2]
[378574938,1754915447449,-460.0,0.00019466,2]
[378574940,1754915447459,-460.0,0.00019466,2]
[378574943,1754915447469,-460.0,0.00019466,2]
[378574944,1754915447478,-460.0,0.00019466,2]
[378574947,1754915447488,-460.0,0.00019466,2]
[378574949,1754915447498,-460.0,0.00019466,2]
[378574950,1754915447507,-460.0,0.00019466,2]
[378574953,1754915447517,-460.0,0.00019466,2]
[378574955,1754915447526,-460.0,0.00019466,2]
[378574956,1754915447536,-460.0,0.00019466,2]
[378574958,1754915447546,-460.0,0.00019466,2]
[378574960,1754915447556,-460.0,0.00019466,2]
[378574963,1754915447573,-531.13,0.00019466,2]
[378574964,1754915447584,-460.0,0.00019466,2]
[378574967,1754915447595,-460.0,0.00019466,2]
[378574969,1754915447605,-460.0,0.00019466,2]
[378574970,1754915447615,-460.0,0.00019466,2]
[378574972,1754915447626,-460.0,0.00019466,2]
[378574975,1754915447636,-460.0,0.00019466,2]
[378574977,1754915447646,-835.99,0.00019466,2]
[378574979,1754915447655,-460.0,0.00019466,2]
[378574980,1754915447665,-460.0,0.00019466,2]
[378574983,1754915447675,-460.0,0.00019466,2]
[378574985,1754915447684,-827.83,0.00019466,2]
[378574986,1754915447693,-460.0,0.00019466,2]
[378574989,1754915447703,-460.0,0.00019466,2]
[378574991,1754915447713,-460.0,0.00019466,2]
[378574992,1754915447723,-460.0,0.00019466,2]
[378574995,1754915447733,-460.0,0.00019466,2]
[378574996,1754915447742,-460.0,0.00019466,2]
[378574998,1754915447752,-460.0,0.00019466,2]
[378575001,1754915447761,-460.0,0.00019466,2]
[378575003,1754915447771,-460.0,0.00019466,2]
[378575005,1754915447781,-928.46,0.00019466,2]
[378575007,1754915447790,-592.07,0.00019466,2]
[378575009,1754915447799,-525.70095258,0.00019466,2]
[378575010,1754915447809,-460.0,0.00019466,2]
[378575012,1754915447818,-460.0,0.00019466,2]
[378575015,1754915447828,-3875.53,0.00019466,2]
[378575017,1754915447837,-460.0,0.00019466,2]
[378575019,1754915447849,-2004.18,0.00019466,2]
[378575021,1754915447859,-460.0,0.00019466,2]
[378575023,1754915447869,-460.0,0.00019466,2]
[378575025,1754915447879,-460.0,0.00019466,2]
[378575027,1754915447889,-460.0,0.00019466,2]
[378575029,1754915447898,-800.87,0.00019466,2]
[378575031,1754915447909,-460.0,0.00019466,2]
[378575033,1754915447924,-460.0,0.00019466,2]
[378575035,1754915447934,-651.2,0.00019466,2]
[378575037,1754915447944,-460.0,0.00019466,2]
[378575039,1754915447954,-460.0,0.00019466,2]
[378575041,1754915447964,-460.0,0.00019466,2]
[378575043,1754915447973,-779.52,0.00019466,2]
[378575045,1754915447983,-5048.41,0.00019466,2]
[378575047,1754915447993,-461.56,0.00019466,2]
[378575049,1754915448002,-460.0,0.00019466,2]
[378575051,1754915448011,-460.0,0.00019466,2]
[378575053,1754915448021,-460.0,0.00019466,2]
[378575055,1754915448030,-151.0,0.00019466,2]
[378575057,1754915448040,-554.16,0.00019466,2]
[378575059,1754915448050,-460.0,0.00019466,2]
[378575061,1754915448060,-500.0,0.00019466,2]
[378575063,1754915448070,-644.47,0.00019466,2]
[378575065,1754915448079,-151.0,0.00019466,2]
[378575067,1754915448089,-2691.36,0.00019466,2]
[378575069,1754915448102,-2300.09,0.00019466,2]
[378575071,1754915448112,-1216.52,0.00019466,2]
[378575073,1754915448121,-1216.52,0.00019466,2]
[378575075,1754915448131,-460.0,0.00019466,2]
[378575077,1754915448140,-800.87,0.00019467,2]
[378575079,1754915448150,-800.87,0.00019467,2]
[378575081,1754915448159,-800.87,0.00019467,2]
[378575083,1754915448169,-800.87,0.00019467,2]
[378575085,1754915448179,-800.87,0.00019467,2]
[378575087,1754915448189,-800.87,0.00019467,2]
[378575089,1754915448198,-800.87,0.00019467,2]
[378575091,1754915448208,-800.87,0.00019467,2]
[378575093,1754915448217,-800.87,0.00019467,2]
[378575095,1754915448227,-800.87,0.00019467,2]
[378575097,1754915448237,-800.87,0.00019467,2]
[378575099,1754915448247,-800.87,0.00019467,2]
[378575101,1754915448256,-800.87,0.00019467,2]
[378575103,1754915448266,-800.87,0.00019467,2]
[378575105,1754915448275,-800.87,0.00019467,2]
[378575107,1754915448285,-800.87,0.00019467,2]
[378575109,1754915448295,-800.87,0.00019467,2]
[378575111,1754915448305,-800.87,0.00019467,2]
[378575113,1754915448314,-800.87,0.00019467,2]
[378575115,1754915448323,-800.87,0.00019467,2]
[378575117,1754915448333,-800.87,0.00019467,2]
[378575119,1754915448343,-800.96,0.00019467,2]
[378575121,1754915448353,-500.0,0.00019467,2]
[378575124,1754915448363,-500.0,0.00019467,2]
[378575126,1754915448372,-500.0,0.00019467,2]
[378575128,1754915448382,-584.53,0.00019467,2]
[378575130,1754915448391,-160.26181276,0.00019468,2]
[378575131,1754915448401,-160.0,0.00019468,2]
[378575134,1754915448411,-1760.0,0.00019468,2]
[378575136,1754915448419,-2000.0,0.00019468,2]
[378575138,1754915448429,-2000.0,0.00019468,2]
[378575140,1754915448440,-2000.0,0.00019468,2]
[378575142,1754915448450,-2000.0,0.00019468,2]
[378575144,1754915448459,-503.551,0.00019468,2]
[378575146,1754915448469,-2000.0,0.00019468,2]
[378575148,1754915448480,-2000.0,0.00019468,2]
[378575150,1754915448490,-2000.0,0.00019468,2]
[378575152,1754915448500,-2000.0,0.00019468,2]
[378575154,1754915448510,-2000.0,0.00019468,2]
[378575156,1754915448520,-2000.0,0.00019468,2]
[378575158,1754915448530,-2000.0,0.00019468,2]
[378575160,1754915448544,-2000.0,0.00019468,2]
[378575162,1754915448554,-1760.0,0.00019468,2]
[378575164,1754915448564,-1760.0,0.00019468,2]
[378575166,1754915448575,-1760.0,0.00019468,2]
[378575168,1754915448585,-1760.0,0.00019468,2]
[378575170,1754915448595,-1760.0,0.00019468,2]
[378575172,1754915448604,-155.0,0.00019468,2]
[378575174,1754915448614,-1760.0,0.00019468,2]
[378575176,1754915448624,-155.0,0.00019468,2]
[378575178,1754915448634,-1760.0,0.00019468,2]
[378575180,1754915448643,-155.0,0.00019468,2]
[378575182,1754915448654,-1760.0,0.00019468,2]
[378575184,1754915448664,-155.0,0.00019468,2]
[378575186,1754915448673,-1760.0,0.00019468,2]
[378575188,1754915448684,-155.69205813,0.00019468,2]
[378575190,1754915448693,-1760.0,0.00019468,2]
[378575192,1754915448703,-1760.0,0.00019468,2]
[378575194,1754915448713,-1760.0,0.00019468,2]
[378575196,1754915448723,-1760.0,0.00019468,2]
[378575198,1754915448732,-1760.0,0.00019468,2]
[378575200,1754915448743,-1760.0,0.00019468,2]
[378575202,1754915448753,-1760.0,0.00019468,2]
[378575204,1754915448764,-1760.0,0.00019468,2]
[378575206,1754915448774,-1760.0,0.00019468,2]
[378575208,1754915448786,-325.0,0.00019468,2]
[378575210,1754915448795,-500.0,0.00019473,2]
[378575212,1754915448805,-500.0,0.00019473,2]
[378575214,1754915448816,-500.0,0.00019473,2]
[378575216,1754915448825,-500.0,0.00019473,2]
[378575218,1754915448835,-500.0,0.00019473,2]
[378575220,1754915448844,-500.0,0.00019473,2]
[378575222,1754915448853,-500.0,0.00019473,2]
[378575224,1754915448863,-500.0,0.00019473,2]
[378575226,1754915448874,-500.0,0.00019473,2]
[378575228,1754915448884,-500.0,0.00019473,2]
[378575230,1754915448893,-500.0,0.00019473,2]
[378575237,1754915448954,-500.0,0.00019473,2]
[378575239,1754915448964,-259.66365204,0.00019473,2]
[378575241,1754915448974,-500.0,0.00019473,2]
[378575243,1754915448983,-500.0,0.00019473,2]
[378575245,1754915448992,-500.0,0.00019473,2]
[378575247,1754915449002,-500.0,0.00019473,2]
[378575249,1754915449011,-540.96312681,0.00019473,2]
[378575251,1754915449019,-500.0,0.00019473,2]
[378575253,1754915449028,-510.02556055,0.00019473,2]
[378575255,1754915449036,-500.0,0.00019473,2]
[378575257,1754915449046,-500.0,0.00019473,2]
[378575259,1754915449055,-500.0,0.00019473,2]
[378575261,1754915449064,-500.0,0.00019473,2]
[378575263,1754915449073,-500.0,0.00019473,2]
[378575265,1754915449082,-500.0,0.00019473,2]
[378575266,1754915449092,-500.0,0.00019473,2]
[378575268,1754915449102,-500.0,0.00019473,2]
[378575270,1754915449112,-500.0,0.00019473,2]
[378575272,1754915449122,-500.0,0.00019473,2]
[378575274,1754915449132,-500.0,0.00019473,2]
[378575276,1754915449142,-506.10857676,0.00019473,2]
[378575278,1754915449152,-500.0,0.00019473,2]
[378575281,1754915449162,-500.0,0.00019473,2]
[378575282,1754915449172,-500.0,0.00019473,2]
[378575285,1754915449182,-258.46628735,0.00019473,2]
[378575287,1754915449192,-500.0,0.00019473,2]
[378575289,1754915449202,-500.0,0.00019473,2]
[378575290,1754915449211,-425.95840349,0.00019473,2]
[378575292,1754915449222,-500.0,0.00019473,2]
[378575294,1754915449231,-167.51177959,0.00019473,2]
[378575296,1754915449241,-464.7644889,0.00019473,2]
[378575299,1754915449251,-316.07866541,0.00019473,2]
[378575300,1754915449260,-500.0,0.00019473,2]
[378575303,1754915449270,-500.0,0.00019473,2]
[378575304,1754915449279,-500.0,0.00019473,2]
[378575307,1754915449289,-500.0,0.00019473,2]
[378575308,1754915449299,-500.0,0.00019473,2]
[378575311,1754915449308,-500.0,0.00019473,2]
[378575312,1754915449318,-500.0,0.00019473,2]
[378575315,1754915449328,-262.54099449,0.00019473,2]
[378575317,1754915449338,-500.0,0.00019473,2]
[378575319,1754915449350,-500.0,0.00019473,2]
[378575321,1754915449359,-500.0,0.00019473,2]
[378575323,1754915449369,-500.0,0.00019473,2]
[378575325,1754915449379,-500.0,0.00019473,2]
[378575327,1754915449389,-2434.74389024,0.00019498,2]
[378575329,1754915449398,-151.0,0.000195,2]
[378575331,1754915449408,-151.0,0.000195,2]
[378575333,1754915449417,-151.0,0.000195,2]
[378575335,1754915449426,-151.0,0.000195,2]
[378575337,1754915449435,-151.0,0.000195,2]
[378575339,1754915449445,-460.0,0.00019536,2]
[378575341,1754915449455,-460.0,0.00019536,2]
[378575343,1754915449464,-460.0,0.00019537,2]
[378575345,1754915449474,-460.0,0.00019537,2]
[378575347,1754915449483,-473.75,0.00019537,2]
[378575349,1754915449493,-734.57,0.00019537,2]
[378575351,1754915449503,-2255.65,0.00019537,2]
[378575353,1754915449512,-448.74976641,0.00019537,2]
[378575355,1754915449521,-460.0,0.00019537,2]
[378575357,1754915449530,-500.41009868,0.00019537,2]
[378575359,1754915449541,-460.0,0.00019537,2]
[378575361,1754915449550,-221.26299913,0.00019537,2]
[378575363,1754915449559,-833.49,0.00019537,2]
[378575365,1754915449568,-460.0,0.00019537,2]
[378575367,1754915449577,-460.0,0.00019537,2]
[378575369,1754915449586,-460.0,0.00019537,2]
[378575371,1754915449598,-460.0,0.00019537,2]
[378575373,1754915449607,-460.0,0.00019537,2]
[378575375,1754915449616,-345.50537266,0.00019537,2]
[378575377,1754915449626,-460.0,0.00019537,2]
[378575379,1754915449635,-640.85,0.00019537,2]
[378575381,1754915449643,-200.0,0.00019542,15]
[378575383,1754915449652,-200.0,0.00019542,15]
[378575385,1754915449662,-200.0,0.00019542,15]
[378575386,1754915449672,-200.0,0.00019542,15]
[378575388,1754915449681,-2524.82941417,0.00019553,2]
[378575390,1754915449691,-460.0,0.00019567,2]
[378575392,1754915449701,-460.0,0.00019567,2]
[378575394,1754915449710,-460.0,0.00019567,2]
[378575396,1754915449719,-460.0,0.00019567,2]
[378575398,1754915449729,-520.42288639,0.00019567,2]
[378575400,1754915449739,-460.0,0.00019567,2]
[378575402,1754915449748,-460.0,0.00019567,2]
[378575404,1754915449758,-981.78,0.00019567,2]
[378575406,1754915449767,-460.0,0.00019567,2]
[378575408,1754915449776,-3530.64,0.00019567,2]
[378575410,1754915449786,-460.0,0.00019567,2]
[378575411,1754915449795,-460.0,0.00019567,2]
[378575412,1754915449804,-460.0,0.00019567,2]
[378575413,1754915449814,-3544.45,0.00019567,2]
[378575414,1754915449824,-460.0,0.00019567,2]
[378575415,1754915449833,-2342.45325454,0.00019568,2]
[378575416,1754915449842,-151.0,0.00019568,2]
[378575417,1754915449851,-382.458308,0.00019568,2]
[378575418,1754915449860,-382.458308,0.00019568,2]
[378575419,1754915449868,-151.0,0.00019568,2]
[378575420,1754915449878,-151.0,0.00019568,2]
[378575421,1754915449887,-403.0,0.00019568,2]
[378575422,1754915449898,-28952.67654588,0.00019589,2]
[378575423,1754915449908,-2618.2481025,0.00019608,2]
[378575424,1754915449922,-500.0,0.00019612,2]
[378575425,1754915449931,-460.0,0.00019638,2]
[378575426,1754915449940,-460.0,0.00019638,2]
[378575427,1754915449950,-460.0,0.00019638,2]
[378575428,1754915449961,-630.86,0.00019638,2]
[378575429,1754915449970,-460.0,0.00019638,2]
[378575430,1754915449980,-1196.72,0.00019638,2]
[378575431,1754915449992,-460.0,0.00019638,2]